fUSD/lending_fUSD_20250710
["ID","MTS","AMOUNT","RATE_DAILY","PERIOD"]
[370734985,1752108641217,-151.0,0.000205,2]
[370734987,1752108641226,-151.0,0.000205,2]
[370734989,1752108641236,-151.0,0.000205,2]
[370734991,1752108641245,-151.0,0.000205,2]
[370734993,1752108641255,-1665.407991,0.000205,2]
[370734995,1752108641264,-1665.407991,0.000205,2]
[370734997,1752108641275,-210.38436402,0.000205,3]
[370734999,1752108641285,-837.2675624,0.000205,3]
[370735001,1752108641294,-12176.0,0.00020521,2]
[370735003,1752108641303,-1614.0,0.00020521,2]
[370735005,1752108641312,-3775.53,0.0002053,2]
[370735007,1752108641322,-163.76154355,0.00020536,2]
[370735009,1752108641331,-156.32,0.00020536,2]
[370735011,1752108641341,-156.32,0.00020536,2]
[370735013,1752108641351,-156.32,0.00020536,2]
[370735015,1752108641360,-156.32,0.00020536,2]
[370735017,1752108641370,-156.32,0.00020536,2]
[370735019,1752108641384,-156.32,0.00020536,2]
[370735021,1752108641394,-156.32,0.00020536,2]
[370735023,1752108641404,-487676.43964116,0.00020545,2]
[370735026,1752108641417,-555.75,0.00020545,2]
[370735168,1752108642796,-18920.99999999,0.00020545,2]
[370737685,1752108874703,3000.0,0.0003,120]
[370737709,1752108921959,5057.0,0.0003,120]
[370737716,1752108934448,2000.0,0.0003,120]
[370737760,1752109040924,160.0,0.0002,30]
[370737769,1752109112060,25775.19100001,0.00030137,120]
[370737784,1752109269367,25775.19,0.00030137,120]
[370737816,1752109832770,-321.43,0.00013699,2]
[370737817,1752109832780,-199.877374,0.00017084,2]
[370737818,1752109832789,-1200.0,0.0001717,2]
[370737819,1752109832798,-7908.45,0.00017171,2]
[370737820,1752109832808,-511.0,0.0001735,2]
[370737821,1752109832817,-1000.0,0.00018295,2]
[370737822,1752109832826,-2200.0,0.00018355,2]
[370737823,1752109832835,-700.0,0.00018355,2]
[370737824,1752109832845,-223.54,0.00018489,2]
[370737825,1752109832856,-539.24,0.00018493,2]
[370737826,1752109832866,-200.0,0.00018507,7]
[370737827,1752109832875,-305.05,0.0001852,2]
[370737828,1752109832884,-1000.0,0.00018529,2]
[370737829,1752109832895,-150.65791196,0.00018592,2]
[370737830,1752109832913,-23900.0,0.00018731,2]
[370737831,1752109832923,-1680.0,0.00018843,2]
[370737832,1752109832933,-511.0,0.00018873,4]
[370737833,1752109832943,-6083.11,0.00018879,2]
[370737834,1752109832952,-10000.0,0.00019,2]
[370737835,1752109832963,-167.2,0.00019028,2]
[370737836,1752109832973,-216.18,0.00019084,2]
[370737837,1752109832982,-169.92,0.00019178,2]
[370737838,1752109832992,-1422.51,0.00019251,2]
[370737839,1752109833001,-1422.51,0.00019261,2]
[370737840,1752109833010,-4184.91601992,0.00019271,2]
[370737841,1752109833020,-1422.51,0.00019271,2]
[370737842,1752109833030,-1422.51,0.00019282,2]
[370737843,1752109833039,-300.0,0.00019285,2]
[370737844,1752109833049,-300.0,0.00019285,2]
[370737845,1752109833058,-300.0,0.00019285,2]
[370737846,1752109833067,-300.0,0.00019285,2]
[370737847,1752109833077,-300.0,0.00019285,2]
[370737848,1752109833086,-300.0,0.00019285,2]
[370737849,1752109833096,-300.0,0.00019285,2]
[370737850,1752109833105,-300.0,0.00019285,2]
[370737851,1752109833115,-300.0,0.00019285,2]
[370737852,1752109833124,-300.0,0.00019285,2]
[370737853,1752109833133,-207.4,0.00019285,2]
[370737854,1752109833143,-300.0,0.00019285,2]
[370737855,1752109833152,-300.0,0.00019285,2]
[370737856,1752109833162,-300.0,0.00019285,2]
[370737857,1752109833172,-300.0,0.00019285,2]
[370737858,1752109833183,-300.0,0.00019285,2]
[370737859,1752109833202,-151.0,0.00019285,2]
[370737860,1752109833221,-151.0,0.00019285,2]
[370737861,1752109833231,-151.0,0.00019285,2]
[370737862,1752109833241,-151.0,0.00019285,2]
[370737863,1752109833251,-151.0,0.00019285,2]
[370737864,1752109833261,-151.0,0.00019285,2]
[370737865,1752109833270,-151.0,0.00019285,2]
[370737866,1752109833280,-151.0,0.00019285,2]
[370737867,1752109833292,-151.0,0.00019285,2]
[370737868,1752109833306,-171.98140717,0.00019285,2]
[370737869,1752109833316,-812.59,0.00019288,2]
[370737870,1752109833325,-250.0,0.0001929,2]
[370737871,1752109833335,-1422.51,0.00019292,2]
[370737872,1752109833345,-1422.51,0.00019302,2]
[370737873,1752109833354,-1422.51,0.00019312,2]
[370737874,1752109833363,-1422.51,0.00019322,2]
[370737875,1752109833373,-1422.51,0.00019332,2]
[370737876,1752109833383,-1422.51,0.00019342,2]
[370737877,1752109833393,-1422.51,0.00019353,2]
[370737878,1752109833402,-1422.51,0.00019363,2]
[370737879,1752109833412,-1422.51,0.00019373,2]
[370737880,1752109833421,-1422.51,0.00019383,2]
[370737881,1752109833431,-1422.51,0.00019393,2]
[370737882,1752109833440,-2652.7470926,0.000194,2]
[370737883,1752109833450,-2652.74709236,0.000194,2]
[370737884,1752109833460,-1422.51,0.00019403,2]
[370737885,1752109833469,-500.0,0.00019413,2]
[370737886,1752109833479,-150.0,0.00019413,2]
[370737887,1752109833488,-1311.0,0.00019413,2]
[370737888,1752109833498,-2752.0,0.00019413,2]
[370737889,1752109833507,-150.0,0.00019413,2]
[370737890,1752109833517,-150.0,0.00019413,2]
[370737891,1752109833527,-150.0,0.00019413,2]
[370737892,1752109833536,-500.0,0.00019413,2]
[370737893,1752109833545,-150.0,0.00019413,2]
[370737894,1752109833554,-993.0,0.00019413,2]
[370737895,1752109833564,-500.0,0.00019413,2]
[370737896,1752109833573,-500.0,0.00019413,2]
[370737897,1752109833582,-500.0,0.00019413,2]
[370737898,1752109833591,-1422.51,0.00019413,2]
[370737899,1752109833601,-1422.51,0.00019423,2]
[370737900,1752109833610,-1422.51,0.00019434,2]
[370737901,1752109833620,-184.14,0.0001944,2]
[370737902,1752109833629,-1422.51,0.00019444,2]
[370737903,1752109833638,-2200.0,0.00019451,2]
[370737904,1752109833648,-700.0,0.00019451,2]
[370737905,1752109833658,-184.14,0.00019537,2]
[370737906,1752109833668,-150.0,0.00019562,2]
[370737907,1752109833678,-184.14,0.00019635,2]
[370737908,1752109833687,-431.0,0.00019635,2]
[370737909,1752109833697,-150.0,0.00019635,2]
[370737910,1752109833706,-709.0,0.00019635,2]
[370737911,1752109833715,-150.0,0.00019635,2]
[370737912,1752109833725,-821.0,0.00019635,2]
[370737913,1752109833734,-500.0,0.00019635,2]
[370737914,1752109833743,-150.0,0.00019635,2]
[370737915,1752109833753,-150.0,0.00019635,2]
[370737916,1752109833762,-500.0,0.00019635,2]
[370737917,1752109833771,-500.0,0.00019635,2]
[370737918,1752109833780,-2652.74709236,0.00019659,2]
[370737919,1752109833791,-500.0,0.00019687,2]
[370737920,1752109833800,-1311.0,0.00019687,2]
[370737921,1752109833809,-2752.0,0.00019687,2]
[370737922,1752109833818,-150.0,0.00019687,2]
[370737923,1752109833827,-150.0,0.00019687,2]
[370737924,1752109833837,-500.0,0.00019687,2]
[370737925,1752109833847,-993.0,0.00019687,2]
[370737926,1752109834029,-500.0,0.00019687,2]
[370737927,1752109834045,-500.0,0.00019687,2]
[370737928,1752109834055,-500.0,0.00019687,2]
[370737929,1752109834064,-900.0,0.00019717,2]
[370737930,1752109834074,-184.14,0.00019732,2]
[370737931,1752109834083,-184.14,0.0001983,2]
[370737932,1752109834093,-1208.06550046,0.000199,2]
[370737933,1752109834102,-282.49831905,0.000199,2]
[370737934,1752109834112,-431.0,0.00019909,2]
[370737935,1752109834122,-150.0,0.00019909,2]
[370737936,1752109834132,-709.0,0.00019909,2]
[370737937,1752109834141,-150.0,0.00019909,2]
[370737938,1752109834151,-821.0,0.00019909,2]
[370737939,1752109834161,-500.0,0.00019909,2]
[370737940,1752109834170,-150.0,0.00019909,2]
[370737941,1752109834179,-150.0,0.00019909,2]
[370737942,1752109834189,-500.0,0.00019909,2]
[370737943,1752109834199,-500.0,0.00019909,2]
[370737944,1752109834209,-184.14,0.00019927,2]
[370737945,1752109834219,-282.49831897,0.00019929,2]
[370737946,1752109834228,-1000.0,0.00019945,2]
[370737947,1752109834238,-282.49831897,0.00019958,2]
[370737948,1752109834248,-500.0,0.00019961,2]
[370737949,1752109834258,-1311.0,0.00019961,2]
[370737950,1752109834267,-2752.0,0.00019961,2]
[370737951,1752109834277,-150.0,0.00019961,2]
[370737952,1752109834287,-150.0,0.00019961,2]
[370737953,1752109834296,-500.0,0.00019961,2]
[370737954,1752109834306,-993.0,0.00019961,2]
[370737955,1752109834316,-500.0,0.00019961,2]
[370737956,1752109834325,-500.0,0.00019961,2]
[370737957,1752109834335,-500.0,0.00019961,2]
[370737958,1752109834344,-586.18182125,0.00019982,2]
[370737959,1752109834354,-282.49831897,0.00019986,2]
[370737960,1752109834364,-1208.06550042,0.00019991,2]
[370737961,1752109834373,-500.0,0.00019999,2]
[370737962,1752109834383,-1210.76991122,0.00019999,2]
[370737963,1752109834397,-1366.02996558,0.00019999,2]
[370737964,1752109834407,-9055.83997426,0.0002,2]
[370737965,1752109834443,-944.16002574,0.0002,2]
[370737966,1752109834452,-1882.13089256,0.0002,2]
[370737967,1752109834464,-1890.44816829,0.0002,2]
[370737968,1752109834487,-494.93055206,0.0002,2]
[370737969,1752109834510,-313.00849779,0.0002,2]
[370737970,1752109834522,-272.54326196,0.0002,2]
[370737978,1752109838437,-5146.93862734,0.0002,2]
[370737980,1752109838447,-503.99120342,0.0002,2]
[370738134,1752109840044,-17076.00879658,0.0002,2]
[370738135,1752109840054,-500.0,0.0002,2]
[370738137,1752109840064,-150.0,0.0002,2]
[370738139,1752109840073,-150.0,0.0002,2]
[370738141,1752109840083,-2005.0,0.0002,2]
[370738143,1752109840093,-150.0,0.0002,2]
[370738144,1752109840103,-152.31986527,0.0002,2]
[370738146,1752109840113,-500.0,0.0002,2]
[370738148,1752109840122,-150.0,0.0002,2]
[370738150,1752109840131,-3524.58,0.0002,3]
[370738152,1752109840141,-3524.58,0.0002,3]
[370738154,1752109840150,-3524.58,0.0002,3]
[370738155,1752109840160,-3524.58,0.0002,3]
[370738157,1752109840170,-3524.58,0.0002,3]
[370738159,1752109840179,-3524.58,0.0002,3]
[370738161,1752109840189,-3524.58,0.0002,3]
[370738163,1752109840199,-3524.58,0.0002,3]
[370738165,1752109840208,-3524.58,0.0002,3]
[370738166,1752109840217,-282.49831897,0.00020015,2]
[370738168,1752109840227,-900.0,0.00020018,2]
[370738170,1752109840238,-184.14,0.00020025,2]
[370738172,1752109840247,-2652.74709236,0.00020038,2]
[370738173,1752109840257,-282.49831897,0.00020044,2]
[370738175,1752109840266,-58263.40383331,0.00020045,2]
[370738178,1752109840291,-3524.58,0.0002,3]
[370738180,1752109840301,-37922.66386669,0.00020045,2]
[370738182,1752109840312,-164.66460368,0.00020045,2]
[370738184,1752109840321,-282.49831897,0.00020073,2]
[370738186,1752109840330,-1208.06550042,0.00020082,2]
[370738188,1752109840340,-282.49831897,0.00020102,2]
[370738189,1752109840349,-184.14,0.00020122,2]
[370738191,1752109840359,-900.0,0.00020123,2]
[370738193,1752109840369,-900.0,0.00020126,2]
[370738195,1752109840378,-282.49831897,0.0002013,2]
[370738196,1752109840387,-1202.369084,0.00020134,4]
[370738198,1752109840397,-16093.92,0.00020145,2]
[370738200,1752109840407,-8679.35,0.00020145,2]
[370738202,1752109840417,-282.49831897,0.00020159,2]
[370738204,1752109840427,-900.0,0.00020161,2]
[370738206,1752109840436,-1208.06550042,0.00020174,2]
[370738207,1752109840446,-431.0,0.00020183,2]
[370738209,1752109840455,-150.0,0.00020183,2]
[370738211,1752109840465,-709.0,0.00020183,2]
[370738213,1752109840474,-150.0,0.00020183,2]
[370738215,1752109840486,-821.0,0.00020183,2]
[370738217,1752109840495,-500.0,0.00020183,2]
[370738218,1752109840505,-150.0,0.00020183,2]
[370738220,1752109840515,-150.0,0.00020183,2]
[370738222,1752109840525,-500.0,0.00020183,2]
[370738224,1752109840534,-500.0,0.00020183,2]
[370738226,1752109840544,-321.43,0.00020187,2]
[370738227,1752109840553,-282.49831897,0.00020188,2]
[370738229,1752109840562,-4946.60052672,0.000202,2]
[370738231,1752109840572,-900.0,0.00020215,2]
[370738233,1752109840582,-282.49831897,0.00020217,2]
[370738235,1752109840591,-184.14,0.00020219,2]
[370738236,1752109840602,-185.44252709,0.00020235,2]
[370738238,1752109840613,-1311.0,0.00020235,2]
[370738240,1752109840629,-2752.0,0.00020235,2]
[370738242,1752109840638,-150.0,0.00020235,2]
[370738244,1752109840648,-150.0,0.00020235,2]
[370738246,1752109840657,-500.0,0.00020235,2]
[370738247,1752109840666,-993.0,0.00020235,2]
[370738249,1752109840676,-500.0,0.00020235,2]
[370738251,1752109840686,-500.0,0.00020235,2]
[370738253,1752109840695,-500.0,0.00020235,2]
[370738255,1752109840705,-282.49831897,0.00020245,2]
[370738256,1752109840714,-500.0,0.00020247,2]
[370738258,1752109840723,-150.0,0.00020247,2]
[370738260,1752109840732,-500.0,0.00020247,2]
[370738262,1752109840741,-500.0,0.00020247,2]
[370738264,1752109840751,-500.0,0.00020247,2]
[370738265,1752109840760,-500.0,0.00020247,2]
[370738267,1752109840769,-150.0,0.00020247,2]
[370738269,1752109840779,-150.0,0.00020247,2]
[370738271,1752109840788,-150.0,0.00020247,2]
[370738273,1752109840797,-500.0,0.00020247,2]
[370738274,1752109840807,-150.0,0.00020247,2]
[370738276,1752109840816,-500.0,0.00020247,2]
[370738278,1752109840826,-150.0,0.00020247,2]
[370738280,1752109840835,-4946.60052664,0.00020258,2]
[370738282,1752109840845,-1208.06550042,0.00020265,2]
[370738284,1752109840859,-812.59,0.00020274,2]
[370738286,1752109840869,-363.77,0.00020274,2]
[370738287,1752109840878,-500.0,0.00020274,2]
[370738289,1752109840888,-150.0,0.00020274,2]
[370738291,1752109840899,-2005.0,0.00020274,2]
[370738293,1752109840908,-150.0,0.00020274,2]
[370738295,1752109840917,-500.0,0.00020274,2]
[370738297,1752109840928,-150.0,0.00020274,2]
[370738298,1752109840937,-282.49831897,0.00020274,2]
[370738300,1752109840947,-900.0,0.00020299,2]
[370738302,1752109840957,-2000.0,0.000203,2]
[370738304,1752109840966,-4078.88009336,0.000203,2]
[370738306,1752109840976,-282.49831897,0.00020303,2]
[370738307,1752109840985,-4946.60052664,0.00020316,2]
[370738309,1752109840995,-184.14,0.00020317,2]
[370738311,1752109841004,-837.2675624,0.00020321,2]
[370738313,1752109841014,-210.38436402,0.00020321,2]
[370738315,1752109841023,-160.0,0.00020321,2]
[370738316,1752109841032,-900.0,0.00020329,2]
[370738318,1752109841042,-282.49831897,0.00020332,2]
[370738320,1752109841052,-170.40309459,0.00020347,2]
[370738322,1752109841061,-1208.06550042,0.00020356,2]
[370738324,1752109841071,-282.49831897,0.00020361,2]
[370738326,1752109841080,-4946.60052664,0.00020374,2]
[370738327,1752109841090,-171.65,0.00020384,2]
[370738329,1752109841099,-171.65,0.00020384,2]
[370738331,1752109841109,-171.65,0.00020384,2]
[370738333,1752109841118,-170.4,0.00020384,2]
[370738335,1752109841129,-282.49831897,0.00020389,2]
[370738337,1752109841138,-511.0,0.00020396,6]
[370738338,1752109841147,-586.18182122,0.00020404,2]
[370738340,1752109841156,-150.0,0.00020411,2]
[370738342,1752109841166,-171.65,0.00020411,2]
[370738344,1752109841175,-198.73,0.00020411,2]
[370738346,1752109841185,-184.14,0.00020414,2]
[370738347,1752109841194,-2652.74709236,0.00020417,3]
[370738349,1752109841204,-282.49831897,0.00020418,2]
[370738351,1752109841213,-900.0,0.0002043,2]
[370738353,1752109841223,-1000.0,0.00020435,2]
[370738355,1752109841233,-3144.6415,0.00020435,2]
[370738356,1752109841243,-42009.1085,0.00020447,3]
[370738358,1752109841252,-5000.0,0.00020447,2]
[370738360,1752109841262,-382.56902124,0.00020447,2]
[370738362,1752109841272,-229.86758249,0.00020447,2]
[370738364,1752109841285,-282.49831897,0.00020447,2]
[370738366,1752109841294,-332.0467418,0.00020447,2]
[370738368,1752109841305,-1208.06550042,0.00020447,2]
[370738370,1752109841314,-210.38436402,0.0002045,3]
[370738371,1752109841324,-431.0,0.00020457,2]
[370738373,1752109841333,-150.0,0.00020457,2]
[370738375,1752109841343,-709.0,0.00020457,2]
[370738377,1752109841352,-150.0,0.00020457,2]
[370738379,1752109841361,-821.0,0.00020457,2]
[370738380,1752109841371,-500.0,0.00020457,2]
[370738382,1752109841380,-195.15430253,0.00020457,2]
[370738384,1752109841390,-150.8038967,0.00020457,2]
[370738386,1752109841399,-500.0,0.00020457,2]
[370738388,1752109841409,-500.0,0.00020457,2]
[370738389,1752109841418,-171.182,0.00020476,2]
[370738391,1752109841429,-2418.174,0.00020476,2]
[370738393,1752109841439,-211.77,0.000205,2]
[370738395,1752109841448,-647.0,0.00020504,2]
[370738397,1752109841459,-1311.0,0.00020509,2]
[370738399,1752109841468,-2752.0,0.00020509,2]
[370738400,1752109841478,-150.0,0.00020509,2]
[370738402,1752109841488,-500.0,0.00020509,2]
[370738404,1752109841498,-993.0,0.00020509,2]
[370738406,1752109841507,-500.0,0.00020509,2]
[370738408,1752109841517,-500.0,0.00020509,2]
[370738410,1752109841527,-500.0,0.00020509,2]
[370738412,1752109841536,-184.14,0.00020512,2]
[370738413,1752109841546,-1614.0,0.00020521,2]
[370738415,1752109841555,-12176.0,0.00020521,2]
[370738417,1752109841565,-500.0,0.00020521,2]
[370738419,1752109841574,-150.0,0.00020521,2]
[370738421,1752109841584,-500.0,0.00020521,2]
[370738423,1752109841594,-500.0,0.00020521,2]
[370738425,1752109841603,-500.0,0.00020521,2]
[370738426,1752109841613,-500.0,0.00020521,2]
[370738428,1752109841622,-150.0,0.00020521,2]
[370738430,1752109841632,-150.0,0.00020521,2]
[370738432,1752109841642,-150.0,0.00020521,2]
[370738434,1752109841651,-552.3101411,0.00020521,2]
[370738436,1752109841661,-150.0,0.00020521,2]
[370738438,1752109841670,-500.0,0.00020521,2]
[370738439,1752109841681,-150.0,0.00020521,2]
[370738441,1752109841690,-9199.4832019,0.00020534,2]
[370738443,1752109841699,-151130.6359654,0.00020534,2]
[370738445,1752109841708,-1104.7072991,0.00020534,2]
[370738447,1752109841717,-5624.5883863,0.00020534,2]
[370738448,1752109841726,-92639.7894685,0.00020534,2]
[370738450,1752109841737,-151.0,0.00020534,2]
[370738460,1752109841833,-6491.6371555,0.00020534,2]
[370738462,1752109841843,-151.0,0.00020534,2]
[370738464,1752109841855,-151.0,0.00020534,2]
[370738465,1752109841865,-11319.2740608,0.00020534,2]
[370738467,1752109841873,-151.0,0.00020534,2]
[370738469,1752109841882,-1078.94903327,0.00020535,2]
[370738471,1752109841892,-163.76154355,0.00020537,2]
[370738473,1752109841903,-156.32,0.00020537,2]
[370738475,1752109841911,-156.32,0.00020537,2]
[370738476,1752109841920,-156.32,0.00020537,2]
[370738478,1752109841931,-156.32,0.00020537,2]
[370738480,1752109841940,-156.32,0.00020537,2]
[370738482,1752109841949,-1208.06550042,0.00020539,2]
[370738484,1752109841958,-1017.92836055,0.00020545,2]
[370738486,1752109841969,-152.0,0.00020545,2]
[370738488,1752109841978,-152.0,0.00020545,2]
[370738489,1752109841988,-152.0,0.00020545,2]
[370738491,1752109841997,-152.0,0.00020545,2]
[370738493,1752109842006,-152.0,0.00020545,2]
[370738495,1752109842016,-152.0,0.00020545,2]
[370738497,1752109842025,-152.0,0.00020545,2]
[370738498,1752109842034,-152.0,0.00020545,2]
[370738500,1752109842043,-360.99809164,0.00020545,2]
[370738502,1752109842052,-2361.77708,0.00020545,2]
[370738504,1752109842061,-152.0,0.00020545,2]
[370738506,1752109842070,-184.428164,0.00020546,2]
[370738508,1752109842079,-151.0,0.00020546,2]
[370738509,1752109842088,-151.0,0.00020546,2]
[370738511,1752109842098,-151.0,0.00020546,2]
[370738513,1752109842107,-820.633326,0.00020546,2]
[370738515,1752109842116,-820.633326,0.00020546,2]
[370738517,1752109842126,-459.496136,0.00020546,2]
[370738518,1752109842135,-459.496136,0.00020546,2]
[370738520,1752109842144,-151.0,0.00020546,2]
[370738522,1752109842153,-151.0,0.00020546,2]
[370738524,1752109842162,-151.0,0.00020546,2]
[370738526,1752109842172,-151.0,0.00020546,2]
[370738527,1752109842182,-666.0,0.00020546,2]
[370738528,1752109842191,-300.0,0.00020546,2]
[370738529,1752109842200,-300.0,0.00020546,2]
[370738530,1752109842210,-300.0,0.00020546,2]
[370738531,1752109842219,-300.0,0.00020546,2]
[370738532,1752109842228,-666.0,0.00020546,2]
[370738533,1752109842239,-300.0,0.00020546,2]
[370738534,1752109842249,-300.0,0.00020546,2]
[370738535,1752109842258,-666.0,0.00020546,2]
[370738536,1752109842267,-278.19815931,0.00020546,2]
[370738537,1752109842277,-12862.29670921,0.00020546,2]
[370738538,1752109842286,-773830.79615695,0.00020546,2]
[370738539,1752109842304,-309.23271076,0.00020546,2]
[370738907,1752109846155,-812.59,0.00019288,2]
[370738909,1752109846165,-998.17895862,0.0002,3]
[370740593,1752110374940,5300.0,0.0002,10]
[370740594,1752110479877,-152.0,0.00023822,60]
[370740595,1752110479899,-152.0,0.00023879,61]
[370740596,1752110479921,-152.0,0.00023935,62]
[370740597,1752110479943,-152.0,0.00023991,63]
[370740598,1752110479964,-152.0,0.00024047,64]
[370740599,1752110479984,-90.0,0.00024103,65]
[370740602,1752110580306,-191.58411435,0.00021616,30]
[370740603,1752110580397,-191.58411435,0.00021863,30]
[370740604,1752110580464,-1866.71254911,0.00022,30]
[370740635,1752111032539,-306.71,0.00013699,2]
[370740636,1752111032549,-161.98757335,0.00013699,2]
[370740637,1752111032559,-250.0,0.00015,2]
[370740638,1752111032571,-485.485,0.00018251,2]
[370740639,1752111032581,-1200.0,0.00018343,2]
[370740640,1752111032591,-151.0,0.00018344,2]
[370740641,1752111032602,-151.0,0.00018344,2]
[370740642,1752111032612,-151.0,0.00018344,2]
[370740643,1752111032621,-84.81164525,0.00018344,2]
[370740644,1752111032633,-66.18835475,0.00018344,2]
[370740645,1752111032643,-151.0,0.00018344,2]
[370740646,1752111032652,-151.0,0.00018344,2]
[370740647,1752111032662,-151.0,0.00018344,2]
[370740648,1752111032671,-151.0,0.00018344,2]
[370740649,1752111032681,-151.0,0.00018344,2]
[370740650,1752111032691,-151.0,0.00018344,2]
[370740651,1752111032702,-151.0,0.00018344,2]
[370740652,1752111032711,-151.0,0.00018344,2]
[370740653,1752111032720,-151.0,0.00018344,2]
[370740654,1752111032730,-151.0,0.00018344,2]
[370740655,1752111032740,-1800.0,0.00018355,2]
[370740656,1752111032750,-500.0,0.00018355,2]
[370740657,1752111032760,-833.8,0.00018409,2]
[370740658,1752111032769,-23900.0,0.0001842,2]
[370740659,1752111032779,-197.55,0.00018495,2]
[370740661,1752111032788,-200.0,0.00018748,7]
[370740662,1752111032798,-154.53708146,0.000189,2]
[370740663,1752111032807,-511.0,0.00018919,2]
[370740664,1752111032816,-15750.73753119,0.00019,3]
[370740665,1752111032841,-7197.1994615,0.00019,3]
[370740669,1752111032940,-705.89245747,0.00019,3]
[370740671,1752111032949,-210.38436402,0.00019,3]
[370740673,1752111032959,-166.73,0.00019108,2]
[370740674,1752111032968,-166.92,0.00019183,2]
[370740676,1752111032977,-2224.45373794,0.000192,2]
[370740678,1752111032986,-971.89944047,0.000192,2]
[370740681,1752111032998,-1252.55429727,0.000192,2]
[370740683,1752111033007,-1000.0,0.00019202,2]
[370740685,1752111033017,-163.46,0.00019202,2]
[370740686,1752111033026,-300.0,0.00019285,2]
[370740688,1752111033036,-207.4,0.00019285,2]
[370740690,1752111033046,-300.0,0.00019285,2]
[370740692,1752111033056,-190.17,0.0001939,2]
[370740694,1752111033065,-799.64,0.0001939,2]
[370740696,1752111033074,-1666.77570273,0.000194,2]
[370740698,1752111033085,-3550.000005,0.000194,2]
[370740701,1752111033097,-1300.0,0.000194,2]
[370740702,1752111033108,-266.98928938,0.000194,2]
[370740706,1752111033131,-34287.14256845,0.000194,2]
[370740918,1752111038485,-4688.94209907,0.000194,2]
[370740919,1752111038586,-1706.66092022,0.000194,2]
[370740920,1752111038683,-201146.63674782,0.000194,2]
[370740921,1752111038693,-1800.0,0.00019451,2]
[370740922,1752111038703,-500.0,0.00019451,2]
[370740923,1752111038712,-2224.45373774,0.00019452,2]
[370740924,1752111038722,-228.0,0.00019491,2]
[370740925,1752111038731,-1124.11196458,0.000195,2]
[370740926,1752111038740,-228.0,0.0001953,2]
[370740927,1752111038750,-150.0,0.00019548,2]
[370740928,1752111038759,-150.0,0.00019619,2]
[370740929,1752111038768,-150.0,0.00019687,2]
[370740930,1752111038777,-2224.45373774,0.00019728,2]
[370740931,1752111038786,-2967.96031602,0.000198,2]
[370740932,1752111038795,-1408.28738807,0.00019855,2]
[370740933,1752111038805,-1262.86962481,0.00019864,2]
[370740934,1752111038814,-3547.70977702,0.00019865,2]
[370740935,1752111038823,-150.0,0.00019865,2]
[370740936,1752111038833,-2816.57477613,0.0001987,2]
[370740937,1752111038842,-3064.09245592,0.0001987,2]
[370740938,1752111038851,-162024.10447572,0.00019871,2]
[370740939,1752111038860,-23900.35625117,0.00019879,2]
[370740940,1752111038870,-2967.96031598,0.00019887,2]
[370740941,1752111038879,-1539.95456074,0.00019888,2]
[370740942,1752111038889,-2816.57477613,0.00019893,2]
[370740943,1752111038898,-1408.28738807,0.00019894,2]
[370740944,1752111038908,-1000.0,0.000199,2]
[370740945,1752111038917,-175575.60861339,0.000199,2]
[370740946,1752111038927,-586.18182122,0.000199,2]
[370740947,1752111038937,-2500.0,0.000199,2]